bitfinex/quotes_ETHUSD_20251111
["timestamp","ask_amount","ask_price","bid_price","bid_amount"]
[1762837872880,1.158,3566.5,3566.4,2.80391734]
[1762837873486,1.158,3566.5,3566.4,0.9341]
[1762837874260,1.158,3566.5,3566.4,4.41297469]
[1762837875198,1.158,3566.5,3566.4,0.9341]
[1762837875371,1.158,3566.5,3566.4,0.4613]
[1762837875702,0.5,3566.2,3566.1,0.209]
[1762837875859,0.5,3566.2,3566.1,1.1431]
[1762837876774,4.56381721,3566.2,3566.1,0.6703]
[1762837876987,5.7477568,3566.2,3566.1,0.6703]
[1762837877183,5.36639401,3566.2,3566.1,0.6703]
[1762837877383,5.36639401,3566.2,3566.1,0.012]
[1762837878368,5.64429401,3566.2,3566.1,0.012]
[1762837878589,5.36639401,3566.2,3566.1,0.012]
[1762837878799,2.5622888,3566.2,3566.1,0.6703]
[1762837878986,1.759712,3566.2,3566.1,1.1431]
[1762837879167,4.56381721,3566.2,3566.1,1.1431]
[1762837880379,1.759712,3566.2,3566.1,1.1431]
[1762837880680,5.22181721,3566.2,3566.1,1.1431]
[1762837881077,1.158,3566.2,3566.1,1.1431]
[1762837883578,1.158,3566.2,3566.1,3.94728384]
[1762837883779,1.158,3566.2,3566.1,4.62264861]
[1762837883980,0.5,3566.2,3566.1,4.62264861]
[1762837884179,1.158,3566.2,3566.1,4.62264861]
[1762837884413,1.158,3566.2,3566.1,1.81846477]
[1762837884618,1.158,3566.2,3566.1,1.1431]
[1762837885586,1.158,3566.2,3566.1,3.94728384]
[1762837886083,1.158,3566.2,3566.1,1.1431]
[1762837886715,0.5,3566.2,3566.1,3.94728384]
[1762837887014,1.158,3566.2,3566.1,1.1431]
[1762837887215,0.5,3566.2,3566.1,4.62265993]
[1762837888422,0.5,3566.4,3566.2,0.405504]
[1762837888609,0.5,3566.4,3566.3,2.80402658]
[1762837888918,0.5,3566.4,3566.3,0.4577]
[1762837889123,0.5,3566.4,3566.3,0.9262]
[1762837889717,0.89617301,3566.4,3566.3,0.4577]
[1762837889918,0.5,3566.4,3566.3,0.4577]
[1762837890424,0.5,3566.4,3566.3,0.9262]
[1762837891217,1.158,3566.4,3566.3,3.73022658]
[1762837891519,1.158,3566.4,3566.3,0.9262]
[1762837892599,1.159,3566.4,3566.3,0.9262]
[1762837893200,0.501,3566.4,3566.3,4.12416374]
[1762837893395,0.001,3566.4,3566.3,4.52966774]
[1762837893632,0.001,3566.4,3566.3,4.12416374]
[1762837893929,0.501,3566.4,3566.3,4.12416374]
[1762837898839,0.501,3566.4,3566.3,3.73022658]
[1762837899823,0.001,3566.4,3566.3,4.13573058]
[1762837900029,0.001,3566.8,3566.7,3.20921611]
[1762837900217,0.001,3566.8,3566.7,4.32491611]
[1762837900416,0.001,3566.8,3566.7,4.79341611]
[1762837901312,0.001,3566.8,3566.7,5.83353303]
[1762837901518,0.001,3567.6,3567.5,3.20858739]
[1762837901753,0.001,3567.6,3567.5,3.66628739]
[1762837901921,0.001,3567.6,3567.5,4.13478739]
[1762837902655,0.001,3567.6,3567.5,9.11920847]
[1762837902953,0.001,3567.6,3567.5,10.37724724]
[1762837904450,0.51,3568.9,3568.8,3.20756631]
[1762837904648,0.01,3568.9,3568.8,3.84846631]
[1762837904867,0.01,3568.9,3568.8,4.31696631]
[1762837906617,0.01,3568.9,3568.2,0.6517]
[1762837906821,0.5,3568.4,3568.3,2.80245495]
[1762837907022,0.5,3568.4,3568.3,3.27095495]
[1762837907319,0.5,3568.4,3568.3,3.72865495]
[1762837908122,0.5,3568.4,3568.3,4.4658994]
[1762837909024,0.5,3568.6,3568.5,2.80229788]
[1762837909371,0.5,3568.6,3568.5,3.20780188]
[1762837909668,0.01,3568.9,3568.5,4.13398692]
[1762837909863,0.51,3568.9,3568.8,3.25976231]
[1762837910313,0.51,3568.9,3568.8,4.13376631]
[1762837910949,0.511,3568.9,3568.8,4.13376631]
[1762837911250,0.011,3568.9,3568.8,4.82736488]
[1762837911626,0.511,3568.9,3568.8,4.61136088]
[1762837911825,0.511,3568.9,3568.8,3.95336088]
[1762837912226,0.511,3568.9,3568.8,4.42186088]
[1762837913836,0.511,3568.9,3568.8,0.4577]
[1762837914061,0.511,3568.9,3568.8,3.25976231]
[1762837914970,0.001,3569.3,3569.2,3.20725229]
[1762837915145,0.001,3569.3,3569.2,8.23086137]
[1762837915340,0.001,3569.3,3569.2,8.70406137]
[1762837915667,0.001,3569.3,3569.2,11.39456842]
[1762837916674,0.001,3569.3,3569.2,7.66985934]
[1762837917039,0.001,3569.3,3569.2,7.01185934]
[1762837917268,0.001,3569.3,3569.2,7.66985934]
[1762837918675,0.001,3569.3,3569.2,11.39456842]
[1762837919775,0.001,3569.7,3569.6,3.20693833]
[1762837920075,0.001,3569.7,3569.6,6.17779713]
[1762837920286,0.001,3569.7,3569.6,6.67009713]
[1762837921779,0.001,3569.7,3569.6,3.85558113]
[1762837922099,0.49100001,3569.7,3569.6,2.80143433]
[1762837922262,0.49100001,3569.7,3569.6,3.20693833]
[1762837922463,0.49100001,3569.7,3569.6,2.80143433]
[1762837923404,0.2855,3569.7,3569.5,2.8014461]
[1762837923695,0.49000001,3569.3,3569.2,2.80174829]
[1762837924384,0.49000001,3569.3,3569.2,3.25504829]
[1762837924700,0.49100001,3569.7,3569.6,2.80143433]
[1762837925562,0.49100001,3569.7,3569.6,3.25473433]
[1762837926266,0.2855,3569.7,3569.3,0.405504]
[1762837926465,0.49000001,3569.4,3569.3,3.20717379]
[1762837928299,0.49000001,3569.4,3568.5,1.259712]
[1762837928300,0.7468,3569.4,3568.7,1.062504]
[1762837928499,0.49000001,3569.0,3568.9,0.405504]
[1762837928799,0.49000001,3569.0,3568.9,3.2074878]
[1762837929098,0.98040001,3569.0,3568.9,2.8019838]
[1762837929872,0.49000001,3569.0,3568.9,2.8019838]
[1762837930309,0.97810001,3569.0,3568.9,2.8019838]
[1762837930893,0.49000001,3569.0,3568.9,2.8019838]
[1762837931783,0.49000001,3568.4,3568.3,3.20795895]
[1762837931989,0.464,3569.4,3568.4,0.405504]
[1762837932196,0.464,3569.6,3569.3,2.80166036]
[1762837932397,0.464,3569.6,3568.4,0.4923]
[1762837932398,2.380712,3569.6,3568.4,0.405504]
[1762837932599,2.380712,3569.6,3568.4,3.20788041]
[1762837932600,0.49000001,3568.5,3568.4,3.20788041]
[1762837932820,0.49000001,3568.5,3568.4,4.43514251]
[1762837933711,0.49000001,3569.1,3569.0,2.80186244]
[1762837933886,0.49000001,3569.0,3568.9,2.80191089]
[1762837934522,0.7487,3569.0,3568.4,0.405504]
[1762837934677,0.49000001,3568.5,3568.4,3.20788041]
[1762837934878,0.49000001,3568.5,3568.4,3.89368551]
[1762837935376,0.49000001,3568.5,3568.4,3.48818151]
[1762837935624,0.77830001,3568.5,3568.4,2.80237641]
[1762837935834,0.77830001,3568.5,3568.1,2.80260166]
[1762837935835,0.7488,3568.5,3568.0,0.002]
[1762837936034,0.98040001,3568.1,3568.0,0.002]
[1762837936381,1.24080001,3568.1,3568.0,0.002]
[1762837936833,3.55341203,3568.1,3568.0,0.002]
[1762837937033,5.71616586,3568.1,3568.0,0.002]
[1762837937307,5.30312404,3568.1,3568.0,0.002]
[1762837937529,4.06263825,3567.7,3567.6,0.002]
[1762837937721,8.27994734,3567.7,3567.6,0.002]
[1762837937919,8.74394734,3567.7,3567.6,0.002]
[1762837941514,9.40094734,3567.7,3567.6,0.002]
[1762837946743,9.40194734,3567.7,3567.6,0.002]
[1762837946976,10.44866051,3567.7,3567.6,0.002]
[1762837947678,3.29324055,3567.3,3567.2,0.002]
[1762837947881,9.0310771,3567.3,3567.2,0.002]
[1762837948055,5.05303113,3567.2,3567.1,0.01]
[1762837948259,5.02243113,3567.2,3567.1,0.01]
[1762837948584,4.0632669,3566.9,3566.8,0.002]
[1762837948742,9.43419546,3566.9,3566.8,0.002]
[1762837948947,4.55365996,3566.4,3566.3,0.02097]
[1762837949170,8.76558451,3566.4,3566.3,0.02097]
[1762837949373,9.21578451,3566.4,3566.3,0.02097]
[1762837949571,10.41774831,3566.4,3566.3,0.02097]
[1762837950586,10.4277483,3566.4,3566.3,0.02097]
[1762837950892,10.41774831,3566.4,3566.3,0.02097]
[1762837951807,10.91774831,3566.4,3566.3,0.02097]
[1762837953510,11.32325231,3566.4,3566.3,0.02097]
[1762837953710,11.70909463,3566.4,3566.3,0.02097]
[1762837954216,18.04709463,3566.4,3566.3,0.02097]
[1762837954415,0.2826,3566.2,3565.1,0.01]
[1762837954571,8.80607768,3565.9,3565.1,0.01]
[1762837954772,8.08672829,3565.2,3565.1,0.01]
[1762837954976,9.01652829,3565.2,3565.1,0.01]
[1762837955197,9.46672829,3565.2,3565.1,0.01]
[1762837956888,10.38332061,3565.2,3565.1,0.01]
[1762837957089,10.78553991,3565.2,3565.1,0.01]
[1762837957275,10.2955399,3565.2,3565.1,0.01]
[1762837957471,10.4255399,3565.2,3565.1,0.01]
[1762837958307,9.7675399,3565.2,3565.1,0.01]
[1762837958488,10.4255399,3565.2,3565.1,0.01]
[1762837959224,9.9753399,3565.2,3564.1,0.01]
[1762837959444,2.80654486,3563.1,3562.1,0.01]
[1762837959727,0.49000001,3562.2,3562.1,0.01]
[1762837959900,1.15800001,3562.2,3562.1,0.01]
[1762837960508,1.41950001,3562.2,3562.1,0.01]
[1762837960706,1.15800001,3562.2,3562.1,0.01]
[1762837960907,0.668,3562.2,3561.8,0.4867]
[1762837961137,0.668,3562.2,3561.8,3.2942692]
[1762837961138,0.49000001,3561.9,3561.8,3.2942692]
[1762837961337,0.669,3561.9,3561.8,0.4867]
[1762837961538,1.15900001,3561.9,3561.8,3.7593692]
[1762837961736,1.15900001,3561.9,3561.8,3.2726692]
[1762837961936,1.15900001,3561.9,3561.8,3.7593692]
[1762837962143,1.15900001,3561.9,3561.8,0.9518]
[1762837962342,0.669,3561.9,3561.8,0.4651]
[1762837962529,1.15900001,3561.9,3561.8,0.4651]
[1762837962709,0.49000001,3561.6,3561.5,0.4867]
[1762837963240,0.49000001,3561.2,3561.1,3.49961462]
[1762837963728,0.49000001,3561.2,3561.1,3.96471462]
[1762837964540,0.49000001,3561.2,3561.1,3.47801462]
[1762837964744,0.49000001,3561.2,3561.1,3.96471462]
[1762837965838,0.4502,3562.9,3561.5,0.405504]
[1762837966043,0.49000001,3562.3,3562.2,2.80718595]
[1762837966222,1.15900001,3562.3,3562.2,2.80718595]
[1762837966540,0.49000001,3562.3,3562.2,3.75898595]
[1762837967249,0.49000001,3562.2,3562.1,0.1948]
[1762837967449,0.1955,3563.2,3562.2,0.4867]
[1762837967623,0.49000001,3562.7,3562.6,2.80691054]
[1762837968025,0.49000001,3562.6,3562.4,2.80707464]
[1762837968218,0.49000001,3562.5,3562.4,2.80707464]
[1762837968819,0.49000001,3562.5,3562.1,0.1948]
[1762837969020,0.49000001,3562.2,3562.1,3.48883275]
[1762837969431,0.49000001,3562.2,3562.1,3.95393275]
[1762837970921,0.49000001,3562.2,3562.1,4.63006932]
[1762837971331,0.49000001,3562.2,3562.1,3.95393275]
[1762837971566,7.597712,3563.5,3562.1,1.552104]
[1762837971726,7.597712,3563.5,3562.5,3.67762154]
[1762837971727,0.49000001,3562.6,3562.5,3.67762154]
[1762837971927,6.338,3563.5,3563.4,2.80630858]
[1762837972172,0.49000001,3563.3,3563.2,3.00126609]
[1762837972469,0.49000001,3563.3,3563.2,0.1948]
[1762837972784,0.49000001,3563.3,3563.2,2.80646609]
[1762837972940,0.49000001,3563.3,3563.2,3.27156609]
[1762837973128,0.49000001,3563.3,3563.2,3.75826609]
[1762837973323,0.49000001,3563.3,3563.2,4.43423391]
[1762837973647,0.49000001,3563.3,3562.4,0.4867]
[1762837973959,0.49000001,3562.6,3562.5,3.21252154]
[1762837974383,0.49000001,3562.6,3562.5,3.75881754]
[1762837974582,0.49000001,3562.6,3562.1,0.1948]
[1762837974808,0.49000001,3562.2,3562.1,0.1948]
[1762837975110,0.49000001,3561.8,3561.7,3.29434617]
[1762837975564,0.49000001,3561.8,3561.7,3.79064617]
[1762837975902,0.668,3562.3,3561.7,0.983]
[1762837976047,0.49000001,3561.8,3561.7,3.79059467]
[1762837976746,0.49000001,3561.8,3561.7,4.19609867]
[1762837976973,0.4805,3563.2,3561.7,1.64283926]
[1762837977181,0.49000001,3562.9,3562.8,2.8067619]
[1762837977640,1.15800001,3562.9,3562.8,3.2845619]
[1762837978381,1.15800001,3562.9,3562.5,0.1805]
[1762837978567,0.49000001,3562.7,3562.6,2.80687236]
[1762837980673,0.0691,3562.7,3561.6,0.4521]
[1762837980876,0.49000001,3561.7,3561.6,2.80772686]
[1762837981250,0.49000001,3561.7,3561.6,0.9299]
[1762837981689,0.49000001,3561.7,3561.6,3.73762686]
[1762837982269,0.669,3562.2,3562.1,2.80733275]
[1762837982469,1.15900001,3562.2,3561.7,0.4521]
[1762837982801,0.49000001,3562.0,3561.9,2.80748579]
[1762837983002,0.49000001,3562.0,3561.7,0.4521]
[1762837983166,0.49000001,3561.6,3561.5,2.80780569]
[1762837983369,0.49000001,3561.6,3561.5,3.28560569]
[1762837983569,0.49000001,3561.6,3561.5,3.73770569]
[1762837984805,0.2192112,3562.7,3561.5,1.58466058]
[1762837985003,0.49000001,3562.2,3562.1,0.4778]
[1762837985203,0.49000001,3562.2,3562.1,3.28513275]
[1762837985996,0.49000001,3562.2,3562.1,3.91773275]
[1762837987311,0.001,3562.9,3562.8,2.80678118]
[1762837987498,1.15900001,3562.9,3562.8,2.80678118]
[1762837987704,0.49100001,3562.9,3562.8,3.28458118]
[1762837988209,0.49100001,3562.9,3562.8,2.80678118]
[1762837988415,0.94880001,3562.9,3562.1,0.1805]
[1762837988619,0.94880001,3562.9,3561.4,0.002]
[1762837988620,0.49000001,3561.5,3561.4,0.002]
[1762837988790,0.49000001,3561.5,3561.4,2.80988453]
[1762837988988,0.49000001,3561.5,3561.4,3.73978453]
[1762837989190,1.15900001,3561.8,3561.7,2.80764803]
[1762837989405,0.49000001,3561.5,3561.4,0.002]
[1762837990542,0.49000001,3561.5,3561.4,3.28768453]
[1762837991418,0.49000001,3561.5,3561.4,3.73978453]
[1762837991748,0.49000001,3561.5,3561.4,4.14528853]
[1762837992492,0.49000001,3561.7,3561.6,3.21323086]
[1762837992898,0.49000001,3561.7,3561.6,4.14313086]
[1762837993305,0.49000001,3562.1,3562.0,2.80740149]
[1762837993830,0.49000001,3561.8,3561.7,3.21311816]
[1762837994398,0.49000001,3561.8,3561.7,3.28541416]
[1762837994601,0.669,3562.4,3562.3,2.80717513]
[1762837994799,0.49000001,3562.4,3562.3,3.28497513]
[1762837995014,0.49000001,3562.4,3562.3,3.73707513]
[1762837995798,0.49000001,3562.4,3562.3,4.14257913]
[1762837996738,0.49100001,3562.9,3562.8,2.80678118]
[1762837996957,0.49100001,3562.9,3562.8,3.28458118]
[1762837997257,0.49100001,3562.9,3562.8,3.73668118]
[1762837997556,0.49100001,3562.9,3562.8,3.28458118]
[1762837997919,0.49100001,3562.9,3562.8,0.4778]
[1762837998241,0.49100001,3562.9,3562.5,2.80699341]
[1762837998242,0.49000001,3562.6,3562.5,2.80699341]
[1762837998619,0.49000001,3562.6,3562.5,0.4778]
[1762837998852,0.001,3562.9,3562.5,2.80701754]
[1762837999153,0.49000001,3562.6,3562.5,2.80701754]
[1762837999377,0.001,3562.9,3562.8,3.28458118]
[1762837999378,0.49100001,3562.9,3562.8,3.28458118]
[1762837999528,0.001,3562.9,3562.2,0.1805]
[1762837999725,0.49000001,3562.3,3562.2,2.98773261]
[1762837999929,0.1963,3562.9,3562.5,2.80694833]
[1762838000173,0.001,3562.9,3562.8,2.80678118]
[1762838000372,0.49100001,3562.9,3562.8,3.28458118]
[1762838000741,0.49100001,3562.9,3562.8,3.73668118]
[1762838001066,0.49100001,3562.9,3562.8,3.28458118]
[1762838001581,0.49000001,3562.3,3562.2,3.84535794]
[1762838001732,0.49000001,3562.3,3562.2,3.39325794]
[1762838001935,0.49000001,3562.3,3562.2,3.46555394]
[1762838002158,0.49000001,3562.3,3562.2,0.4778]
[1762838002349,0.49000001,3562.3,3562.2,3.28505394]
[1762838002683,0.49000001,3562.3,3561.8,2.80955429]
[1762838002684,0.49000001,3561.9,3561.8,2.80955429]
[1762838003032,0.49000001,3561.9,3561.8,3.28735429]
[1762838004147,0.49000001,3561.9,3561.8,2.80955429]
[1762838004351,0.49000001,3561.9,3561.8,0.002]
[1762838004554,0.49000001,3561.9,3561.8,2.8095692]
[1762838004943,0.49000001,3561.9,3561.8,3.2873692]
[1762838005345,0.49000001,3561.9,3561.8,3.7667692]
[1762838009680,0.49000001,3561.9,3561.8,3.2873692]
[1762838010216,9.22674198,3561.9,3561.8,0.002]
[1762838010514,2.80780569,3561.5,3561.4,0.002]
[1762838010802,8.79165729,3561.5,3561.4,0.002]
[1762838011315,9.45965729,3561.5,3561.4,0.002]
[1762838012769,6.6518516,3561.5,3561.4,0.002]
[1762838013172,8.79165729,3561.5,3561.4,0.002]
[1762838013359,7.14378386,3561.5,3561.4,0.002]
[1762838013564,3.41044427,3561.5,3561.4,0.002]
[1762838013781,4.07844427,3561.5,3561.4,0.002]
[1762838014359,6.88624996,3561.5,3561.4,0.002]
[1762838014573,4.07844427,3561.5,3561.4,0.002]
[1762838014797,3.41044427,3561.5,3561.4,0.002]
[1762838015102,4.07744427,3561.5,3561.4,0.002]
[1762838016818,2.91254427,3561.5,3561.4,0.002]
[1762838017020,3.57954427,3561.5,3561.4,0.002]
[1762838017366,0.49000001,3561.5,3561.4,0.002]
[1762838017600,1.15700001,3561.5,3561.4,0.002]
[1762838017774,0.49000001,3561.5,3561.4,0.4727]
[1762838017987,0.49000001,3561.5,3561.4,3.75998453]
[1762838018322,0.49000001,3561.6,3561.5,2.80772994]
[1762838018495,1.15700001,3561.6,3561.5,2.80772994]
[1762838018703,1.15700001,3561.6,3561.5,3.75782994]
[1762838018865,1.15700001,3561.6,3561.5,0.4707]
[1762838019216,0.49000001,3561.5,3561.4,2.80982399]
[1762838019408,0.49000001,3561.5,3561.4,0.002]
[1762838019565,0.49000001,3561.5,3561.4,2.80988453]
[1762838020294,1.15700001,3561.5,3561.4,2.80988453]
[1762838020605,0.49000001,3561.5,3561.4,0.4727]
[1762838020768,1.15600001,3561.5,3561.4,0.4727]
[1762838020968,1.15600001,3561.5,3561.4,0.002]
[1762838021163,1.40900001,3561.5,3561.4,0.002]
[1762838021400,0.75697121,3561.5,3561.4,0.4727]
[1762838021611,1.42297121,3561.5,3561.4,0.002]
[1762838021792,0.49000001,3561.5,3561.4,0.002]
[1762838022101,1.15600001,3561.5,3561.4,3.75998453]
[1762838022266,0.49000001,3561.5,3561.4,3.75998453]
[1762838022669,1.15600001,3561.5,3561.4,3.75998453]
[1762838022881,1.15600001,3561.5,3561.4,4.16548853]
[1762838023083,0.001,3561.8,3561.7,2.80764803]
[1762838023380,1.15700001,3561.8,3561.7,0.4707]
[1762838023714,1.15700001,3561.8,3561.7,2.80764803]
[1762838024004,1.15700001,3561.8,3561.7,3.75774803]
[1762838024296,1.15700001,3561.8,3561.7,3.27834803]
[1762838025702,1.15700001,3561.8,3561.7,3.75774803]
[1762838025971,1.15600001,3561.8,3561.7,3.75774803]
[1762838026214,1.15600001,3561.8,3561.7,3.27834803]
[1762838028116,0.001,3561.8,3561.7,4.45505193]
[1762838028421,0.666,3561.8,3561.7,4.45505193]
[1762838029511,0.001,3561.8,3561.7,4.86055593]
[1762838033133,0.001,3561.8,3561.7,3.27834803]
[1762838033329,0.49100001,3561.8,3561.7,3.27834803]
[1762838035382,0.49100001,3561.8,3561.7,2.80764803]
[1762838035564,0.79430001,3561.8,3561.7,2.80764803]
[1762838036136,0.49100001,3561.8,3561.7,3.29864803]
[1762838036669,0.49100001,3561.8,3561.4,0.002]
[1762838036670,0.49000001,3561.5,3561.4,0.002]
[1762838036872,1.29725001,3561.5,3561.4,2.80988453]
[1762838037068,1.46700001,3561.5,3561.4,0.002]
[1762838037270,1.91670001,3561.5,3561.4,0.002]
[1762838039936,1.25270001,3561.5,3561.4,0.002]
[1762838040156,1.91670001,3561.5,3561.4,0.002]
[1762838040357,4.7245057,3561.5,3561.4,0.002]
[1762838040572,5.86931839,3561.5,3561.4,0.002]
[1762838040869,3.0615127,3561.5,3561.4,0.002]
[1762838041773,7.12903039,3561.5,3561.4,0.002]
[1762838042536,4.3212247,3561.5,3561.4,0.002]
[1762838042772,4.3202247,3561.5,3561.4,0.002]
[1762838043072,7.12803039,3561.5,3561.4,0.002]
[1762838044054,3.6572247,3561.5,3561.4,0.002]
[1762838044383,3.8705247,3561.5,3561.4,0.002]
[1762838044761,3.2075247,3561.5,3561.4,0.002]
[1762838044966,3.8705247,3561.5,3561.4,0.002]
[1762838045275,1.9478127,3561.5,3561.4,0.002]
[1762838045479,1.15300001,3561.5,3561.4,0.002]
[1762838046179,0.49000001,3561.5,3561.4,0.493]
[1762838046364,1.15300001,3561.5,3561.4,0.493]
[1762838046675,1.15300001,3561.5,3561.4,3.30088453]
[1762838047242,0.49000001,3561.5,3561.4,3.79048453]
[1762838047447,0.001,3561.8,3561.7,2.80764803]
[1762838047647,0.49100001,3561.8,3561.7,3.29864803]
[1762838048044,1.15400001,3561.8,3561.7,3.29864803]
[1762838048243,1.15400001,3561.8,3561.7,3.78824803]
[1762838048452,0.664,3561.8,3561.7,3.78824803]
[1762838048661,0.664,3561.8,3561.7,4.19375203]
[1762838048662,0.001,3561.8,3561.7,4.19375203]
[1762838048863,0.664,3561.8,3561.7,4.89410777]
[1762838050517,0.001,3561.8,3561.7,4.89410777]
[1762838051301,0.001,3561.8,3561.7,4.92218425]
[1762838051494,0.001,3561.8,3561.7,4.89410777]
[1762838060524,0.001,3561.8,3561.7,6.18189625]
[1762838060832,0.001,3561.8,3561.7,6.15381977]
[1762838068723,0.001,3562.9,3562.1,3.21283675]
[1762838068923,0.001,3562.9,3562.1,6.93744634]
[1762838070931,0.1986,3562.9,3562.1,6.27644634]
[1762838073101,0.001,3562.9,3562.1,6.27644634]
[1762838073300,0.49000001,3562.3,3562.1,5.82444634]
[1762838073469,0.49000001,3562.3,3562.1,5.67164634]
[1762838074053,0.49000001,3562.3,3562.1,5.20054634]
[1762838074278,0.49000001,3562.3,3562.1,5.67164634]
[1762838074597,0.1986,3562.9,3562.1,6.32254634]
[1762838074791,0.001,3562.6,3562.1,6.32254634]
[1762838075566,0.001,3562.6,3562.1,6.98354634]
[1762838076572,0.001,3562.6,3562.1,5.87054634]
[1762838076915,0.001,3562.6,3562.1,6.32254634]
[1762838078916,0.001,3562.6,3562.1,5.20054634]
[1762838079115,0.001,3562.6,3562.1,4.94364875]
[1762838079116,0.49100001,3562.2,3562.1,4.94364875]
[1762838079644,0.49100001,3562.2,3562.1,5.59454875]
[1762838079645,0.001,3562.2,3562.1,5.59454875]
[1762838082096,0.001,3562.2,3562.1,6.25554875]
[1762838083595,0.001,3562.2,3562.1,5.80354875]
[1762838084233,0.001,3562.2,3562.1,6.25554875]
[1762838084538,0.001,3562.2,3562.1,7.16184634]
[1762838085130,0.49000001,3562.0,3561.6,0.002]
[1762838085314,0.5577,3562.2,3561.6,0.002]
[1762838085315,0.78950001,3561.7,3561.6,0.002]
[1762838085529,0.59380001,3561.7,3561.6,2.80972686]
[1762838085895,0.1038,3561.7,3561.6,2.80972686]
[1762838086245,0.1038,3561.7,3561.6,3.21523086]
[1762838086446,0.1038,3561.7,3561.6,2.80972686]
[1762838086613,0.49100001,3562.2,3562.1,2.80733275]
[1762838086795,0.77370001,3562.2,3562.1,2.80733275]
[1762838087195,0.77370001,3562.2,3562.1,3.21283675]
[1762838087503,0.2837,3562.2,3562.1,3.21283675]
[1762838088523,0.2837,3562.2,3562.1,0.405504]
[1762838088825,0.49000001,3562.1,3562.0,3.21289067]
[1762838089029,0.49000001,3562.1,3562.0,0.405504]
[1762838089030,0.49450001,3562.1,3562.0,0.405504]
[1762838089243,0.94830001,3562.1,3562.0,0.405504]
[1762838091640,0.94830001,3562.1,3562.0,3.21291556]
[1762838091827,0.49450001,3562.1,3562.0,3.21291556]
[1762838092763,0.001,3562.2,3562.0,3.68401556]
[1762838092968,0.001,3562.2,3561.6,0.002]
[1762838093165,3.2978057,3561.5,3561.4,0.002]
[1762838093335,3.95907573,3561.5,3561.4,0.002]
[1762838093535,4.41287573,3561.5,3561.4,0.002]
[1762838097662,5.67258773,3561.5,3561.4,0.001]
[1762838097837,6.45106212,3561.5,3561.4,0.001]
[1762838099134,5.30059654,3561.4,3561.3,1e-08]
[1762838099339,7.12770328,3561.4,3561.3,1e-08]
[1762838100137,7.56071153,3561.4,3561.3,1e-08]
[1762838100345,5.05775424,3561.2,3561.1,0.01]
[1762838100542,5.05775424,3561.2,3560.1,0.01]
[1762838100543,4.55854297,3560.2,3560.1,0.01]
[1762838100751,3.97313097,3560.2,3560.1,0.01]
[1762838100953,4.46413097,3560.2,3560.1,0.01]
[1762838101152,1.7675,3560.2,3560.1,0.01]
[1762838101359,1.61750001,3560.2,3560.1,0.01]
[1762838101890,1.90310001,3560.2,3560.1,0.01]
[1762838102097,4.90224097,3560.2,3560.1,0.01]
[1762838104281,2.09341001,3560.2,3560.1,0.01]
[1762838104958,4.90224097,3560.2,3560.1,0.01]
[1762838105575,4.90224097,3560.2,3560.1,0.0071]
[1762838105771,4.90224097,3560.2,3559.1,0.01]
[1762838105772,0.13,3559.2,3559.1,0.01]
[1762838105992,5.60056164,3559.2,3559.1,0.01]
[1762838106198,0.49000001,3558.4,3558.3,0.08711738]
[1762838106510,4.69804965,3558.4,3558.3,0.08711738]
[1762838106813,6.64956165,3558.4,3558.3,0.08711738]
[1762838106995,2.02865618,3558.4,3558.3,0.08711738]
[1762838107317,1.85380001,3558.4,3558.3,0.08711738]
[1762838107670,0.49000001,3558.4,3558.3,0.08711738]
[1762838107881,1.16300001,3558.4,3558.3,3.86143649]
[1762838108386,0.49000001,3558.4,3558.3,3.86144815]
[1762838108562,0.49000001,3558.4,3558.3,4.26695215]
[1762838108766,1.16300001,3558.8,3558.7,2.81001489]
[1762838109007,1.16300001,3558.8,3558.7,3.28691489]
[1762838109905,0.49000001,3558.8,3558.7,3.28691489]
[1762838110103,0.49000001,3558.8,3558.7,0.4769]
[1762838110416,0.13,3558.7,3558.3,0.08711738]
[1762838110563,0.69170001,3558.4,3558.3,0.08711738]
[1762838110770,2.80973054,3559.1,3558.3,0.08711738]
[1762838110771,0.491,3559.2,3559.1,0.002]
[1762838111012,2.068712,3559.2,3559.1,0.002]
[1762838111217,2.760512,3559.2,3559.1,0.002]
[1762838112231,5.57013213,3559.2,3559.1,0.002]
[1762838112519,2.760512,3559.2,3559.1,0.002]
[1762838112672,2.44151201,3559.2,3559.1,0.002]
[1762838112876,5.93013214,3559.2,3559.1,0.002]
[1762838113073,9.46818178,3559.2,3558.7,0.002]
[1762838113380,4.5599638,3558.4,3558.3,0.08711738]
[1762838113593,5.4358638,3558.4,3558.3,0.08711738]
[1762838113796,5.9268638,3558.4,3558.3,0.08711738]
[1762838113992,3.11661201,3558.4,3558.3,0.08711738]
[1762838114210,5.9268638,3558.4,3558.3,0.08711738]
[1762838114432,9.46491344,3558.4,3558.3,0.08711738]
[1762838114831,5.9268638,3558.4,3558.3,0.08711738]
[1762838115328,3.11661201,3558.4,3558.3,0.08711738]
[1762838115740,0.68690001,3558.4,3558.3,0.08711738]
[1762838115945,1.17000001,3558.4,3558.3,0.56401738]
[1762838116241,0.49000001,3558.4,3558.3,3.86144815]
[1762838116395,0.49000001,3558.4,3558.3,4.26695215]
[1762838116597,0.49000001,3558.4,3558.3,3.86144815]
[1762838116795,1.18040001,3558.4,3558.3,0.08711738]
[1762838117809,3.9906518,3558.4,3558.3,0.08711738]
[1762838118008,1.18040001,3558.4,3558.3,0.08711738]
[1762838118241,3.9906518,3558.4,3558.3,0.08711738]
[1762838118637,1.18040001,3558.4,3558.3,0.08711738]
[1762838118797,0.94950001,3558.4,3558.3,0.08711738]
[1762838118997,4.4457518,3558.4,3558.3,0.08711738]
[1762838119229,1.86640001,3558.4,3558.3,0.08711738]
[1762838119425,1.63550001,3558.4,3558.3,0.08711738]
[1762838121327,1.17500001,3558.4,3558.3,0.08711738]
[1762838121642,1.17500001,3558.4,3558.3,4.26695215]
[1762838121643,0.49000001,3558.4,3558.3,4.26695215]
[1762838121938,0.49000001,3558.5,3558.3,0.56401738]
[1762838122137,0.49000001,3558.4,3558.3,3.37434244]
[1762838122512,0.49000001,3558.4,3558.3,3.86144244]
[1762838122940,0.49000001,3558.4,3558.3,1.05111738]